bitfinex/quotes_BTCUSD_20241018
["timestamp","ask_amount","ask_price","bid_price","bid_amount"]
[1729281020225,0.17599382,68570.0,68569.0,0.000829]
[1729281020442,0.18680176,68570.0,68569.0,0.193929]
[1729281022901,0.1520962,68570.0,68569.0,0.275929]
[1729281023145,0.12777948,68570.0,68569.0,0.275929]
[1729281023360,0.01186789,68570.0,68569.0,0.275929]
[1729281023851,0.002,68575.0,68570.0,0.1931]
[1729281024011,0.16247081,68574.0,68571.0,0.0931]
[1729281024237,0.01215669,68573.0,68571.0,0.1931]
[1729281024459,0.14895915,68572.0,68571.0,0.1931]
[1729281024675,0.15765846,68572.0,68571.0,0.1931]
[1729281025337,0.15765846,68572.0,68571.0,0.0931]
[1729281028393,0.18458622,68572.0,68571.0,0.0931]
[1729281029598,0.1602766,68572.0,68571.0,0.0931]
[1729281032103,0.15596448,68572.0,68571.0,0.0931]
[1729281032309,0.15762248,68572.0,68571.0,0.0931]
[1729281036131,0.00866333,68572.0,68571.0,0.0931]
[1729281036348,0.00866333,68572.0,68571.0,0.976365]
[1729281036349,0.00816395,68572.0,68571.0,0.976365]
[1729281036557,0.001658,68572.0,68571.0,2.946167]
[1729281036768,0.001658,68572.0,68571.0,3.003272]
[1729281037832,0.001658,68572.0,68571.0,2.970167]
[1729281038268,0.001658,68572.0,68571.0,0.422915]
[1729281039138,0.001658,68572.0,68571.0,0.372819]
[1729281039560,0.15061715,68572.0,68571.0,0.1931]
[1729281039766,0.15061715,68572.0,68571.0,0.0931]
[1729281039973,0.15759775,68572.0,68571.0,0.0931]
[1729281052162,0.17110642,68572.0,68571.0,0.0931]
[1729281052386,0.15759775,68572.0,68571.0,0.0931]
[1729281054883,0.15759775,68572.0,68571.0,0.2751]
[1729281054884,0.0086386,68572.0,68571.0,0.2751]
[1729281055096,0.001658,68572.0,68571.0,0.2751]
[1729281055931,0.001658,68572.0,68571.0,0.275929]
[1729281061512,0.15061715,68572.0,68571.0,0.000829]
[1729281061780,0.15760508,68572.0,68571.0,0.000829]
[1729281067291,0.15760508,68572.0,68571.0,0.095429]
[1729281069601,0.00864593,68572.0,68571.0,0.273329]
[1729281069844,0.001658,68572.0,68571.0,0.28535124]
[1729281070077,0.001658,68572.0,68571.0,1.756938]
[1729281070287,0.001658,68572.0,68571.0,1.758938]
[1729281070502,0.001658,68572.0,68571.0,1.82444739]
[1729281070719,0.001658,68572.0,68571.0,1.758938]
[1729281071138,0.001658,68572.0,68571.0,1.82239596]
[1729281072192,0.001658,68572.0,68571.0,1.756938]
[1729281073267,0.001658,68572.0,68571.0,1.80055487]
[1729281075169,0.001658,68572.0,68571.0,1.756938]
[1729281075402,0.21826913,68577.0,68572.0,0.1]
[1729281075617,0.21392713,68584.0,68574.0,0.1951]
[1729281075843,0.21392713,68584.0,68576.0,0.1]
[1729281076070,0.21392713,68584.0,68578.0,0.1]
[1729281076269,0.0493634,68586.0,68580.0,0.1]
[1729281076494,0.19832255,68586.0,68581.0,2.250886]
[1729281076694,0.14895915,68586.0,68582.0,2.113109]
[1729281076961,0.14895915,68586.0,68583.0,0.1]
[1729281077608,0.00700965,68585.0,68583.0,0.1]
[1729281078248,0.14895915,68584.0,68581.0,0.0913]
[1729281078458,0.14895915,68584.0,68571.0,0.000829]
[1729281078680,0.1023604,68583.0,68571.0,0.21909813]
[1729281078898,0.17321955,68582.0,68571.0,0.21909813]
[1729281079127,0.0242604,68581.0,68571.0,0.000829]
[1729281079333,0.17321955,68580.0,68571.0,0.000829]
[1729281079545,0.013478,68579.0,68571.0,0.000829]
[1729281079757,0.14895915,68578.0,68571.0,0.000829]
[1729281079970,0.15596027,68578.0,68571.0,0.000829]
[1729281081256,0.21826913,68577.0,68571.0,0.000829]
[1729281081462,0.14895915,68576.0,68571.0,0.000829]
[1729281082100,0.00699062,68575.0,68571.0,0.000829]
[1729281082302,0.14895915,68574.0,68571.0,0.000829]
[1729281082505,0.00698956,68573.0,68571.0,0.000829]
[1729281082713,0.14895915,68572.0,68571.0,0.000829]
[1729281082920,0.15594823,68572.0,68571.0,0.000829]
[1729281083752,0.23434823,68572.0,68571.0,0.000829]
[1729281083975,0.24782427,68572.0,68571.0,0.000829]
[1729281084174,0.25860502,68572.0,68571.0,0.000829]
[1729281084388,0.24782427,68572.0,68571.0,0.000829]
[1729281086315,0.16942427,68572.0,68571.0,0.000829]
[1729281086538,0.15594823,68572.0,68571.0,0.000829]
[1729281086787,0.00698908,68572.0,68571.0,0.000829]
[1729281087022,0.00698908,68572.0,68571.0,2.96058768]
[1729281087309,0.21826913,68583.0,68573.0,0.095]
[1729281087548,0.14895915,68582.0,68576.0,0.095]
[1729281087773,0.14895915,68582.0,68577.0,3.417349]
[1729281087981,0.14895915,68582.0,68578.0,0.1]
[1729281088473,0.14895915,68582.0,68580.0,0.1]
[1729281088682,0.00669625,68581.0,68580.0,0.1]
[1729281088894,0.14895915,68582.0,68580.0,0.1]
[1729281089123,0.00669625,68581.0,68580.0,0.1]
[1729281089302,0.14895915,68582.0,68578.0,0.1]
[1729281089542,0.00670886,68581.0,68578.0,0.1]
[1729281089765,0.14895915,68582.0,68580.0,0.1]
[1729281090450,0.00670886,68581.0,68580.0,0.1]
[1729281090664,0.00670886,68581.0,68580.0,2.543663]
[1729281090868,0.00670886,68581.0,68580.0,2.443663]
[1729281091081,0.14895915,68582.0,68581.0,0.1]
[1729281091953,0.15566769,68582.0,68581.0,0.1]
[1729281092411,0.00670854,68582.0,68580.0,0.000829]
[1729281092605,0.00670854,68582.0,68581.0,0.075]
[1729281092820,0.001658,68586.0,68581.0,0.075]
[1729281093052,0.15061715,68586.0,68581.0,0.075]
[1729281093269,0.00670997,68585.0,68581.0,0.075]
[1729281093715,0.00670997,68585.0,68584.0,0.1989]
[1729281093966,0.001658,68586.0,68585.0,0.1]
[1729281094178,0.001658,68586.0,68585.0,2.809987]
[1729281094400,0.001658,68586.0,68585.0,2.648425]
[1729281095036,0.001658,68586.0,68585.0,2.214334]
[1729281095254,0.001658,68586.0,68585.0,2.390234]
[1729281095472,0.002,68587.0,68585.0,2.39431282]
[1729281095716,0.002,68587.0,68586.0,4.35399742]
[1729281095931,0.002,68587.0,68586.0,3.073358]
[1729281099809,0.002,68587.0,68586.0,4.236349]
[1729281103693,0.003658,68587.0,68586.0,4.236349]
[1729281104969,0.003658,68587.0,68586.0,4.163426]
[1729281105398,0.003658,68587.0,68586.0,3.940424]
[1729281106044,0.003658,68587.0,68586.0,3.673577]
[1729281106645,0.003658,68587.0,68586.0,3.599656]
[1729281115635,0.003658,68587.0,68586.0,3.453346]
[1729281117716,0.003658,68587.0,68586.0,3.317351]
[1729281118296,0.003658,68587.0,68586.0,3.599472]
[1729281119067,0.003658,68587.0,68586.0,3.453803]
[1729281119743,0.0763,68610.0,68586.0,3.453803]
[1729281119744,0.21826913,68594.0,68593.0,0.002]
[1729281119915,0.21826913,68594.0,68587.0,0.1]
[1729281119916,0.21826913,68608.0,68601.0,0.002]
[1729281120126,0.17324126,68607.0,68601.0,0.002]
[1729281120323,0.02428211,68606.0,68601.0,0.002]
[1729281120525,0.16244921,68605.0,68598.0,0.002]
[1729281120755,0.14895915,68605.0,68598.0,0.002]
[1729281121155,0.14895915,68605.0,68597.0,0.1]
[1729281121360,0.01349764,68604.0,68597.0,0.1]
[1729281121527,0.17325429,68603.0,68597.0,0.1]
[1729281121763,0.01349764,68602.0,68599.0,0.102]
[1729281121959,0.16245679,68601.0,68599.0,0.102]
[1729281122132,0.14895915,68601.0,68599.0,0.102]
[1729281122330,0.01350022,68600.0,68599.0,0.102]
[1729281122699,0.16245937,68600.0,68599.0,0.102]
[1729281122855,0.16245937,68600.0,68599.0,0.002]
[1729281123046,0.14895915,68600.0,68599.0,0.002]
[1729281123476,0.16246352,68600.0,68593.0,0.002]
[1729281123640,0.0751,68603.0,68592.0,0.002]
[1729281123641,0.16246352,68599.0,68592.0,0.002]
[1729281123846,0.01350437,68598.0,68592.0,0.002]
[1729281124075,0.14895915,68597.0,68592.0,0.002]
[1729281124279,0.01350639,68596.0,68592.0,0.002]
[1729281124475,0.0751,68603.0,68592.0,0.002]
[1729281124476,0.14895915,68595.0,68592.0,0.002]
[1729281125439,0.14895915,68595.0,68594.0,0.002]
[1729281126284,0.15544109,68595.0,68594.0,0.002]
[1729281127793,0.15544109,68595.0,68593.0,0.002]
[1729281129245,0.15544109,68595.0,68594.0,0.002]
[1729281135094,0.15544109,68595.0,68593.0,0.002]
[1729281135750,0.15544109,68595.0,68594.0,0.002]
[1729281136605,0.15544109,68595.0,68593.0,0.002]
[1729281137734,0.15544109,68595.0,68594.0,0.002]
[1729281139238,0.15544109,68595.0,68594.0,0.002828]
[1729281139865,0.15544109,68595.0,68594.0,0.000828]
[1729281142355,0.15544109,68595.0,68594.0,0.002828]
[1729281145300,0.16895379,68595.0,68594.0,0.002828]
[1729281145477,0.15544109,68595.0,68594.0,0.002828]
[1729281148606,0.15544109,68595.0,68594.0,0.000828]
[1729281149010,0.16895797,68595.0,68594.0,0.000828]
[1729281150611,0.16895797,68595.0,68594.0,0.002828]
[1729281154078,0.16896822,68595.0,68594.0,0.002828]
[1729281154300,0.02000907,68595.0,68594.0,0.002828]
[1729281154525,0.00648194,68595.0,68594.0,0.29034184]
[1729281154747,0.04324355,68604.0,68594.0,0.29034184]
[1729281154748,0.04324355,68604.0,68603.0,0.002]
[1729281154966,0.04324355,68605.0,68604.0,0.002]
[1729281155211,0.04325045,68605.0,68604.0,0.002]
[1729281155474,0.06486532,68607.0,68604.0,0.002]
[1729281155692,0.01082009,68605.0,68601.0,0.002]
[1729281155899,0.0243452,68604.0,68601.0,0.002]
[1729281156112,0.0243452,68603.0,68601.0,0.002]
[1729281156318,0.0243452,68602.0,68601.0,0.002]
[1729281156529,0.17330435,68602.0,68601.0,0.002]
[1729281156914,0.17978497,68602.0,68601.0,0.002]
[1729281159048,0.15543977,68602.0,68599.0,0.002]
[1729281159263,0.01352636,68601.0,68599.0,0.002]
[1729281159469,0.1733066,68600.0,68599.0,0.002]
[1729281159679,0.17978733,68600.0,68599.0,0.002]
[1729281160524,0.16896624,68600.0,68599.0,0.002]
[1729281163076,0.16896054,68600.0,68599.0,0.002]
[1729281163290,0.16896054,68600.0,68599.0,0.0986]
[1729281163500,0.15543988,68600.0,68599.0,0.0986]
[1729281165668,0.16895914,68600.0,68599.0,0.0986]
[1729281167024,0.15543988,68600.0,68599.0,0.0986]
[1729281167444,0.17977443,68600.0,68599.0,0.0986]
[1729281167650,0.1689591,68600.0,68599.0,0.0986]
[1729281171052,0.1689597,68600.0,68599.0,0.0986]
[1729281173965,0.15543988,68600.0,68599.0,0.0986]
[1729281174172,0.15543988,68600.0,68599.0,0.099428]
[1729281176567,0.00648073,68600.0,68599.0,0.27801142]
[1729281176755,0.00648073,68600.0,68599.0,0.275228]
[1729281176966,0.21826913,68610.0,68605.0,0.002]
[1729281177182,0.14895915,68609.0,68605.0,0.002]
[1729281177372,0.15517799,68609.0,68605.0,0.002]
[1729281177724,0.15517799,68609.0,68600.0,0.1]
[1729281177924,0.15517799,68609.0,68602.0,0.1]
[1729281177925,0.02433892,68608.0,68602.0,0.1]
[1729281178126,0.21656596,68607.0,68602.0,0.1]
[1729281178329,0.02433892,68606.0,68602.0,0.1]
[1729281178564,0.17329807,68605.0,68602.0,0.1]
[1729281178714,0.02433892,68604.0,68602.0,0.1]
[1729281178931,0.16248055,68603.0,68599.0,0.097428]
[1729281179140,0.02433777,68602.0,68599.0,0.097428]
[1729281179364,0.16248055,68601.0,68599.0,0.097428]
[1729281179614,0.0135214,68600.0,68599.0,0.097428]
[1729281179826,0.00621503,68601.0,68600.0,0.0014786]
[1729281180042,0.01081688,68601.0,68600.0,0.0014786]
[1729281180308,0.29260272,68601.0,68600.0,0.0014786]
[1729281180514,0.023,68600.0,68594.0,0.000828]
[1729281180726,0.48427978,68601.0,68594.0,0.000828]
[1729281180727,0.023,68595.0,68594.0,0.000828]
[1729281180937,0.28598584,68595.0,68594.0,0.000828]
[1729281181146,0.44568467,68595.0,68594.0,0.000828]
[1729281181360,0.53643337,68595.0,68594.0,0.000828]
[1729281181579,0.45648994,68595.0,68594.0,0.000828]
[1729281181787,0.023,68587.0,68581.0,0.21826913]
[1729281181995,0.13377101,68587.0,68581.0,0.21826913]
[1729281182434,0.11211427,68587.0,68581.0,0.21826913]
[1729281182853,0.11211427,68587.0,68582.0,0.1]
[1729281183490,0.18277266,68587.0,68573.0,0.1]
[1729281183908,0.25817266,68587.0,68573.0,0.1]
[1729281184138,0.41746565,68587.0,68580.0,0.100829]
[1729281184351,0.37051939,68587.0,68580.0,0.000829]
[1729281184555,0.54318719,68587.0,68580.0,0.000829]
[1729281184972,0.65123804,68587.0,68580.0,0.000829]
[1729281185179,0.54318719,68587.0,68580.0,0.000829]
[1729281186124,0.54939555,68587.0,68580.0,0.000829]
[1729281187479,0.4547517,68587.0,68580.0,0.000829]
[1729281187934,0.51384185,68587.0,68580.0,0.000829]
[1729281188157,0.59469144,68587.0,68580.0,0.000829]
[1729281188367,0.44925087,68587.0,68580.0,0.000829]
[1729281188606,0.26438102,68587.0,68580.0,0.000829]
[1729281188841,0.25356751,68587.0,68580.0,0.000829]
[1729281189361,0.26431033,68587.0,68580.0,0.000829]
[1729281192249,0.26431033,68587.0,68580.0,0.21909813]
[1729281192250,0.26331318,68587.0,68580.0,0.21909813]
[1729281195476,0.26331318,68587.0,68573.0,0.1]
[1729281195691,0.17143688,68584.0,68579.0,0.21826913]
[1729281195897,0.17143688,68584.0,68573.0,0.1]
[1729281195898,0.03992316,68583.0,68573.0,0.1]
[1729281196110,0.01074282,68582.0,68573.0,0.1]
[1729281196326,0.023,68581.0,68573.0,0.1]
[1729281196527,0.0399145,68581.0,68573.0,0.1]
[1729281196735,0.023,68579.0,68573.0,0.1]
[1729281197142,0.14895915,68574.0,68573.0,0.1]
[1729281197358,0.17195915,68574.0,68573.0,0.1]
[1729281197597,0.17195915,68574.0,68571.0,0.000829]
[1729281197598,0.023,68573.0,68571.0,0.000829]
[1729281197797,0.14895915,68572.0,68571.0,0.000829]
[1729281198005,0.15510303,68572.0,68571.0,0.000829]
[1729281202975,0.17810303,68572.0,68571.0,0.000829]
[1729281203216,0.18884245,68572.0,68571.0,0.000829]
[1729281203951,0.18884245,68572.0,68556.0,0.097]
[1729281204200,0.023,68571.0,68565.0,0.21826913]
[1729281204448,0.023,68571.0,68556.0,0.097]
[1729281204449,0.023,68569.0,68556.0,0.097]
[1729281204699,0.023,68569.0,68559.0,0.1]
[1729281204700,0.023,68567.0,68559.0,0.1]
[1729281204957,0.01073942,68566.0,68559.0,0.1]
[1729281205215,0.023,68565.0,68559.0,0.1]
[1729281205440,0.023,68563.0,68559.0,0.1]
[1729281205688,0.17195915,68560.0,68559.0,0.1]
[1729281205931,0.17808719,68560.0,68559.0,0.1]
[1729281206192,0.17808719,68560.0,68556.0,0.097]
[1729281206451,0.14895915,68557.0,68556.0,0.097]
[1729281206699,0.15508576,68557.0,68556.0,0.097]
[1729281208640,0.16585492,68557.0,68556.0,0.097]
[1729281208891,0.15508576,68557.0,68556.0,0.097]
[1729281209404,0.16586699,68557.0,68556.0,0.097829]
[1729281209904,0.15508576,68557.0,68556.0,0.274429]
[1729281214752,0.16587029,68557.0,68556.0,0.274429]
[1729281214984,0.16587029,68557.0,68556.0,0.097829]
[1729281215480,0.16591029,68557.0,68556.0,0.097829]
[1729281215711,0.16590859,68557.0,68556.0,0.097829]
[1729281216374,0.1659084,68557.0,68556.0,0.097829]
[1729281218361,0.15512406,68557.0,68556.0,0.097829]
[1729281218989,0.16590749,68557.0,68556.0,0.097829]
[1729281223888,0.15512406,68557.0,68556.0,0.097829]
[1729281224093,0.16591842,68557.0,68556.0,0.097829]
[1729281226713,0.15512406,68557.0,68556.0,0.097829]
[1729281227706,0.15512406,68557.0,68556.0,0.276029]
[1729281228389,0.15512406,68557.0,68556.0,0.278029]
[1729281228901,0.14899915,68557.0,68556.0,0.276029]
[1729281229151,0.16591201,68557.0,68556.0,0.276029]
[1729281229877,0.16591201,68557.0,68556.0,0.097829]
[1729281232061,0.17671079,68557.0,68556.0,0.097829]
[1729281232297,0.16591273,68557.0,68556.0,0.097829]
[1729281235892,0.16591537,68557.0,68556.0,0.097829]
[1729281236751,0.15511395,68557.0,68556.0,0.097829]
[1729281236960,0.16591557,68557.0,68556.0,0.097829]
[1729281239347,0.15511395,68557.0,68556.0,0.097829]
[1729281239564,0.16591805,68557.0,68556.0,0.097829]
[1729281241179,0.15511395,68557.0,68556.0,0.097829]
[1729281241828,0.16592009,68557.0,68556.0,0.097829]
[1729281242039,0.16592009,68557.0,68556.0,0.099829]
[1729281243365,0.16592009,68557.0,68556.0,0.097829]
[1729281245475,0.15511395,68557.0,68556.0,0.097829]
[1729281246181,0.15511395,68557.0,68556.0,0.276429]
[1729281246417,0.15511395,68557.0,68556.0,0.278429]
[1729281246653,0.15511395,68557.0,68556.0,0.276429]
[1729281246955,0.14899915,68557.0,68556.0,0.276429]
[1729281247428,0.15511317,68557.0,68556.0,0.276429]
[1729281248566,0.15511317,68557.0,68556.0,0.278429]
[1729281249013,0.14899915,68557.0,68556.0,0.278429]
[1729281249450,0.15511317,68557.0,68556.0,0.278429]
[1729281249910,0.08802006,68568.0,68556.0,0.278429]
[1729281249911,0.001658,68568.0,68565.0,0.002]
[1729281250134,0.001658,68568.0,68556.0,0.84092306]
[1729281250135,0.01245935,68568.0,68567.0,0.102]
[1729281250353,0.30463119,68578.0,68567.0,0.102]
[1729281250354,0.04318103,68582.0,68571.0,0.002]
[1729281250559,4e-05,68572.0,68571.0,0.2807]
[1729281251434,0.14899915,68572.0,68571.0,0.2807]
[1729281251865,4e-05,68572.0,68571.0,0.2807]
[1729281254514,0.14899915,68572.0,68571.0,0.2807]
[1729281255218,0.14899915,68572.0,68571.0,0.2787]
[1729281256528,0.14899915,68572.0,68571.0,0.2807]
[1729281256954,0.15065715,68572.0,68571.0,0.2807]
[1729281257385,0.15741676,68572.0,68571.0,0.2807]
[1729281258731,0.15741676,68572.0,68571.0,0.2787]
[1729281258963,0.15741676,68572.0,68571.0,0.2807]
[1729281259841,0.15741676,68572.0,68571.0,0.2787]
[1729281260318,0.15741676,68572.0,68571.0,0.2807]
[1729281270536,0.15741676,68572.0,68571.0,0.2787]
[1729281270753,0.15065715,68572.0,68571.0,0.2787]
[1729281271204,0.1574324,68572.0,68571.0,0.0974]
[1729281271411,0.1574324,68572.0,68568.0,0.000829]
[1729281271647,0.14895915,68571.0,68568.0,0.000829]
[1729281271862,0.14895915,68569.0,68568.0,0.000829]
[1729281272087,0.1597349,68569.0,68568.0,0.000829]
[1729281272309,0.16820181,68569.0,68568.0,0.000829]
[1729281274147,0.16820364,68569.0,68568.0,0.000829]
[1729281277739,0.27280364,68569.0,68568.0,0.000829]
[1729281277958,0.31587011,68569.0,68568.0,0.000829]
[1729281278388,0.27280364,68569.0,68568.0,0.000829]
[1729281278821,0.35087753,68569.0,68568.0,0.000829]
[1729281279032,0.33740335,68569.0,68568.0,0.000829]
[1729281279271,0.33741194,68569.0,68568.0,0.000829]
[1729281279482,0.27280364,68569.0,68568.0,0.000829]
[1729281280556,0.16820364,68569.0,68568.0,0.000829]
[1729281286030,0.16820538,68569.0,68568.0,0.000829]
[1729281290011,0.16820759,68569.0,68568.0,0.000829]
[1729281291344,0.16986559,68569.0,68568.0,0.000829]
[1729281293694,0.18065613,68569.0,68568.0,0.000829]
[1729281293927,0.18065635,68569.0,68568.0,0.000829]
[1729281294363,0.16987482,68569.0,68568.0,0.000829]
[1729281298085,0.01123727,68569.0,68568.0,0.279729]
[1729281298302,0.001698,68587.0,68571.0,0.002]
[1729281298526,0.001698,68587.0,68584.0,0.2789]
[1729281298527,0.26738693,68585.0,68584.0,0.2789]
[1729281298749,0.0491178,68585.0,68584.0,0.2789]
[1729281299002,0.01098675,68585.0,68584.0,0.2789]
[1729281299213,0.001698,68587.0,68586.0,0.002]
[1729281299428,0.15065715,68587.0,68586.0,0.002]
[1729281299866,0.16164619,68587.0,68586.0,0.002]
[1729281300536,0.16164619,68587.0,68586.0,0.0978]
[1729281300982,0.16164619,68587.0,68585.0,0.1]
[1729281301190,0.17195915,68586.0,68585.0,0.07160728]
[1729281301405,0.22588588,68586.0,68578.0,0.0958]
[1729281301629,0.14895915,68581.0,68580.0,0.21826913]
[1729281301842,0.17323074,68581.0,68578.0,0.0958]
[1729281302067,0.18421292,68581.0,68578.0,0.0958]
[1729281302311,0.02427159,68580.0,68578.0,0.0958]
[1729281302532,0.17323074,68579.0,68578.0,0.0958]
[1729281302755,0.18421063,68579.0,68578.0,0.0958]
[1729281304703,0.18421063,68579.0,68574.0,0.1]
[1729281304887,0.01348368,68578.0,68572.0,0.1]
[1729281305144,0.14895915,68577.0,68572.0,0.1]
[1729281305363,0.01348368,68576.0,68572.0,0.1]
[1729281305593,0.14895915,68575.0,68572.0,0.1]
[1729281305805,0.15993447,68575.0,68572.0,0.1]
[1729281310418,0.15993447,68575.0,68572.0,0.102]
[1729281311484,0.15993447,68575.0,68573.0,0.002]
[1729281311914,0.15993447,68575.0,68572.0,0.1]
[1729281312595,0.15993447,68575.0,68572.0,0.102]
[1729281312803,0.15993447,68575.0,68572.0,0.1]
[1729281315271,0.15993447,68575.0,68572.0,0.102]
[1729281315479,0.15993447,68575.0,68572.0,0.102829]
[1729281316103,0.15993447,68575.0,68572.0,0.100829]
[1729281318441,0.15993447,68575.0,68572.0,0.102829]
[1729281320388,0.15993447,68575.0,68572.0,0.100829]
[1729281321467,0.01349526,68574.0,68572.0,0.100829]
[1729281321679,0.14895915,68573.0,68572.0,0.100829]
[1729281321893,0.17347091,68573.0,68572.0,0.000829]
[1729281322101,0.18426589,68573.0,68572.0,0.000829]
[1729281328345,0.24900922,68573.0,68572.0,0.000829]
[1729281328531,0.19776186,68573.0,68572.0,0.000829]
[1729281328780,0.20153512,68573.0,68572.0,0.000829]
[1729281328995,0.3743534,68573.0,68572.0,0.000829]
[1729281329418,0.35708417,68573.0,68572.0,0.000829]
[1729281330463,0.38008417,68573.0,68572.0,0.000829]
[1729281331310,0.3800814,68573.0,68572.0,0.000829]
[1729281331731,0.36658019,68573.0,68572.0,0.000829]
[1729281331940,0.38006989,68573.0,68572.0,0.000829]
[1729281332385,0.39733327,68573.0,68572.0,0.000829]
[1729281333631,0.5267371,68573.0,68568.0,0.000829]
[1729281333900,0.17195915,68569.0,68568.0,0.000829]
[1729281334134,0.38631604,68569.0,68568.0,0.000829]
[1729281334352,0.38631604,68569.0,68558.0,0.1]
[1729281334353,0.023,68568.0,68558.0,0.1]
[1729281334587,0.14895915,68559.0,68558.0,0.1]
[1729281334791,0.17324061,68559.0,68558.0,0.1]
[1729281335184,0.18419643,68559.0,68553.0,0.081]
[1729281335416,0.02428146,68558.0,68553.0,0.081]
[1729281335635,0.15975091,68557.0,68553.0,0.081]
[1729281335872,0.18416735,68557.0,68553.0,0.081]
[1729281337360,0.18416735,68557.0,68556.0,0.099929]
[1729281339593,0.18415026,68557.0,68556.0,0.099929]
[1729281340448,0.18414929,68557.0,68556.0,0.099929]
[1729281340675,0.173378,68557.0,68556.0,0.099929]
[1729281341341,0.18414817,68557.0,68556.0,0.099929]
[1729281341550,0.18414817,68557.0,68556.0,0.07246626]
[1729281342406,0.18414798,68557.0,68556.0,0.07246626]
[1729281343508,0.18414563,68557.0,68556.0,0.07246626]
[1729281343727,0.17337543,68557.0,68556.0,0.07246626]
[1729281343945,0.1841457,68557.0,68556.0,0.07246626]
[1729281344589,0.17337554,68557.0,68556.0,0.07246626]
[1729281345510,0.18414703,68557.0,68556.0,0.07246626]
[1729281347341,0.18415166,68557.0,68556.0,0.07246626]
[1729281348058,0.18415438,68557.0,68556.0,0.07246626]
[1729281350946,0.18415438,68557.0,68556.0,0.15416626]
[1729281351201,0.17339225,68557.0,68556.0,0.25416626]
[1729281351448,0.17339225,68557.0,68556.0,0.25499526]
[1729281351449,0.15991268,68557.0,68556.0,0.25499526]
[1729281352555,0.15991268,68557.0,68556.0,0.25699526]
[1729281353022,0.14895915,68557.0,68556.0,0.25699526]
[1729281353448,0.15988629,68557.0,68556.0,0.25699526]
[1729281353931,0.01092714,68557.0,68556.0,0.25699526]
[1729281354394,0.21826913,68571.0,68562.0,0.1933]
[1729281354609,0.17322832,68570.0,68565.0,0.0933]
[1729281354822,0.16244202,68570.0,68565.0,0.0933]
[1729281355064,0.01348308,68569.0,68565.0,0.0933]
[1729281355293,0.14895915,68568.0,68567.0,0.002]
[1729281358162,0.14895915,68568.0,68566.0,0.002]
[1729281360232,0.14895915,68568.0,68567.0,0.002]
[1729281360447,0.14895915,68568.0,68567.0,0.2834]
[1729281363357,0.0490092,68581.0,68568.0,0.1]
[1729281363558,0.0490092,68581.0,68578.0,0.002]
[1729281363559,0.16242619,68580.0,68578.0,0.002]
[1729281363748,0.01346704,68579.0,68578.0,0.0929]
[1729281363985,0.14895915,68579.0,68578.0,0.0929]
[1729281364193,0.15996357,68579.0,68578.0,0.0929]
[1729281364800,0.15996357,68579.0,68578.0,0.276]
[1729281365009,0.01100442,68579.0,68578.0,0.276]
[1729281365222,0.001658,68585.0,68580.0,0.002]
[1729281365432,0.001658,68585.0,68575.0,0.00098658]
[1729281365433,0.15061715,68585.0,68584.0,0.002]
[1729281365621,0.15061715,68585.0,68584.0,0.2819]
[1729281366062,0.16168643,68585.0,68584.0,0.2819]
[1729281367410,0.01272728,68585.0,68584.0,0.2819]
[1729281367839,0.001658,68585.0,68584.0,0.2819]
[1729281368560,0.15061715,68585.0,68584.0,0.1988]
[1729281368767,0.15061715,68585.0,68579.0,0.0763]
[1729281368992,0.14895915,68584.0,68579.0,0.1763]
[1729281369407,0.16004336,68584.0,68579.0,0.1763]
[1729281371592,0.16004336,68584.0,68579.0,0.1783]
[1729281372010,0.16004336,68584.0,68579.0,0.1]
[1729281372222,0.16004336,68584.0,68576.0,0.0912]
[1729281372223,0.16004336,68584.0,68577.0,0.1]
[1729281372537,0.16004336,68584.0,68575.0,0.1]
[1729281372735,0.16004336,68584.0,68574.0,0.0785]
[1729281372736,0.14895915,68582.0,68576.0,0.21826913]
[1729281373109,0.01106257,68581.0,68574.0,0.0785]
[1729281373348,0.14895915,68580.0,68574.0,0.0785]
[1729281373811,0.01106028,68579.0,68574.0,0.0785]
[1729281373934,0.14895915,68578.0,68574.0,0.0785]
[1729281374373,0.01105799,68577.0,68574.0,0.0785]
[1729281374567,0.14895915,68576.0,68574.0,0.0785]
[1729281374772,0.0110557,68575.0,68574.0,0.0785]
[1729281374967,0.16001485,68575.0,68574.0,0.0785]
[1729281380063,0.16001485,68575.0,68574.0,0.0805]
[1729281380536,0.14895915,68575.0,68574.0,0.0785]
[1729281381198,0.1600065,68575.0,68570.0,0.1931]
[1729281381201,0.17348101,68575.0,68570.0,0.1931]
[1729281381436,0.16243625,68574.0,68570.0,0.1951]
[1729281381688,0.16000147,68574.0,68570.0,0.1951]
[1729281382431,0.16000147,68574.0,68571.0,0.002]
[1729281383146,0.16000147,68574.0,68573.0,0.002]
[1729281383381,0.16000147,68574.0,68571.0,0.002]
[1729281383610,0.01348588,68573.0,68570.0,0.1931]
[1729281383866,0.14895915,68572.0,68570.0,0.1931]
[1729281384111,0.15999919,68572.0,68570.0,0.1931]
[1729281384576,0.15999919,68572.0,68564.0,0.1669]
[1729281384577,0.01348777,68571.0,68564.0,0.1669]
[1729281384792,0.14895915,68570.0,68567.0,0.1]
[1729281385027,0.1599969,68570.0,68567.0,0.1]
[1729281385668,0.01349112,68569.0,68567.0,0.1]
[1729281385896,0.14895915,68568.0,68565.0,0.1]
[1729281386104,0.14895915,68568.0,68565.0,0.102]
[1729281386321,0.01103431,68567.0,68565.0,0.102]
[1729281386537,0.14895915,68566.0,68565.0,0.102]
[1729281386989,0.15999232,68566.0,68565.0,0.102]
[1729281387856,0.15999232,68566.0,68565.0,0.0984]
[1729281394110,0.16003232,68566.0,68565.0,0.0984]
[1729281396040,0.16003232,68566.0,68565.0,0.0964]
[1729281396489,0.16003232,68566.0,68565.0,0.0984]
[1729281397569,0.16003232,68566.0,68565.0,0.0964]
[1729281399126,0.16003232,68566.0,68565.0,0.097229]
[1729281399358,0.16169032,68566.0,68565.0,0.097229]
[1729281400777,0.16169032,68566.0,68565.0,0.099229]